bitfinex-derivatives/quotes_ETHF0:USTF0_20240829
["timestamp","ask_amount","ask_price","bid_price","bid_amount"]
[1724961955122,0.39361,2539.9,2539.8,3.2078]
[1724961955324,0.39363,2539.8,2539.7,0.3724]
[1724961955531,0.39363,2539.8,2539.5,3.41]
[1724961955826,0.39366,2539.6,2539.5,0.3724]
[1724961956321,0.39366,2539.6,2539.4,0.38051343]
[1724961956322,0.39367,2539.5,2539.4,0.00591343]
[1724961956524,1.13497,2539.5,2539.4,0.00591343]
[1724961956824,9.35418022,2539.5,2539.4,0.00591343]
[1724961957828,5.02291022,2539.5,2539.4,0.00591343]
[1724961958026,0.39363,2539.8,2539.4,3.94351343]
[1724961958220,0.39365,2539.7,2539.5,0.3716]
[1724961958728,0.39364,2539.7,2539.5,0.3716]
[1724961959129,4.41043215,2539.6,2539.5,0.3716]
[1724961960728,4.41043215,2539.6,2539.4,0.00591343]
[1724961961633,4.80410215,2539.6,2539.4,0.00591343]
[1724961961836,0.39367,2539.5,2539.4,0.00591343]
[1724961962132,4.80410215,2539.6,2539.4,0.00591343]
[1724961962333,4.41043215,2539.6,2539.4,0.00591343]
[1724961962720,4.41043215,2539.6,2539.4,0.39959343]
[1724961962919,4.41043215,2539.6,2539.5,0.735]
[1724961964130,4.41043215,2539.6,2539.5,0.3636]
[1724961965420,4.41043215,2539.6,2539.5,3.7736]
[1724961965621,0.00591343,2539.9,2539.5,8.10487]
[1724961965833,0.00591343,2539.9,2539.5,4.16727]
[1724961966025,0.39363,2539.8,2539.5,0.3636]
[1724961966336,0.00591343,2539.9,2539.6,3.41]
[1724961966534,0.00591343,2539.9,2539.8,3.41]
[1724961966735,0.00591343,2539.9,2539.8,7.74123]
[1724961970039,0.00591343,2539.9,2539.8,13.74123]
[1724961970429,0.39349,2540.7,2540.3,0.39355]
[1724961970622,0.75169,2540.7,2540.3,0.39355]
[1724961970826,4.30945637,2540.6,2540.3,0.39355]
[1724961971422,4.30945637,2540.6,2540.4,0.3686]
[1724961971629,4.70295637,2540.6,2540.2,3.80356]
[1724961972132,4.70295637,2540.6,2540.3,0.39355]
[1724961972133,4.30945637,2540.6,2540.3,0.39355]
[1724961972435,4.70296637,2540.6,2540.2,3.41]
[1724961972630,4.70296637,2540.6,2540.3,0.39355]
[1724961972631,4.30945637,2540.6,2540.3,0.39355]
[1724961973231,4.30945637,2540.6,2540.2,3.80356]
[1724961973437,4.30945637,2540.6,2540.3,0.39355]
[1724961973736,4.30945637,2540.6,2540.3,0.76145]
[1724961975929,0.39352,2540.5,2540.3,0.3679]
[1724961976134,4.30945637,2540.6,2540.0,3.2078]
[1724961976135,12.43704637,2540.6,2540.0,3.2078]
[1724961976432,0.39356,2540.3,2539.9,0.61000154]
[1724961976626,0.381,2540.2,2539.9,0.61000154]
[1724961976823,4.3707514,2540.2,2539.9,0.61000154]
[1724961977438,4.3707514,2540.2,2539.9,1.00361154]
[1724961977827,4.3707514,2540.2,2539.9,0.61000154]
[1724961978532,8.3075514,2540.2,2539.7,3.2078]
[1724961978842,8.3075514,2540.2,2539.4,0.00591343]
[1724961978843,0.39362,2539.9,2539.5,3.41]
[1724961979029,0.3936,2540.0,2539.5,3.80367]
[1724961979431,4.42602766,2540.0,2539.7,3.41]
[1724961979631,0.77457,2540.2,2539.8,0.75812]
[1724961979837,0.77457,2540.2,2539.8,1.12372]
[1724961980033,4.42602766,2540.1,2539.8,0.7301]
[1724961980239,4.42602766,2540.1,2539.9,3.8036]
[1724961980836,4.42602766,2540.1,2539.8,0.3645]
[1724961981030,0.39364,2539.8,2539.5,3.41]
[1724961981638,0.39362,2539.9,2539.5,3.80367]
[1724961982035,0.3756,2540.0,2539.5,3.41]
[1724961982242,0.3756,2540.0,2539.6,0.39365]
[1724961982452,0.25988825,2540.6,2539.9,7.0114]
[1724961982736,0.3522,2540.5,2540.3,3.80354]
[1724961982931,0.3756,2540.8,2540.4,0.377]
[1724961983131,0.3756,2540.8,2540.6,3.41]
[1724961983336,4.52152772,2540.8,2540.6,3.41]
[1724961983549,0.3756,2540.8,2540.6,3.41]
[1724961985239,0.3756,2540.8,2540.4,0.377]
[1724961985537,4.35475844,2540.7,2540.2,47.4178]
[1724961985739,5.11625844,2540.7,2540.2,6.6178]
[1724961986742,4.72275844,2540.7,2540.2,6.6178]
[1724961986942,4.72275844,2540.7,2540.2,7.0051]
[1724961987144,4.72275844,2540.7,2540.4,3.41]
[1724961987642,4.72275844,2540.7,2540.5,0.3513]
[1724961990745,4.72275844,2540.7,2539.7,0.39364]
[1724961990746,0.39356,2540.3,2539.7,0.39364]
[1724961990935,0.39356,2540.3,2539.5,1.62752998]
[1724961990936,0.39359,2540.1,2539.5,0.39367]
[1724961991139,0.39359,2540.1,2539.4,3.41591343]
[1724961991341,4.26966082,2540.0,2539.4,3.80959343]
[1724961991538,4.26966082,2540.0,2539.4,3.41591343]
[1724961991744,4.26966082,2540.0,2539.5,0.39367]
[1724961991943,4.28696081,2540.1,2539.5,0.39367]
[1724961992142,1.51417,2540.2,2539.5,0.39367]
[1724961992540,4.76852441,2540.1,2539.4,3.80959343]
[1724961992840,4.76852441,2540.1,2539.5,0.39367]
[1724961992841,4.37494441,2540.1,2539.5,0.39367]
[1724961993946,0.7368,2540.2,2539.8,3.41]
[1724961994154,0.7368,2540.2,2539.8,3.80362]
[1724961994745,0.7368,2540.2,2539.9,0.39361]
[1724961994942,0.7368,2540.2,2539.8,3.80362]
[1724961996143,0.7368,2540.2,2539.8,3.41]
[1724961996348,0.7368,2540.2,2539.8,3.80362]
[1724961996548,3.58896901,2541.0,2540.1,6.6178]
[1724961996851,5.24023867,2540.9,2540.5,3.41]
[1724961997756,5.24023867,2540.9,2540.5,3.80351]
[1724961997947,0.7388,2540.9,2540.5,3.80351]
[1724961998148,0.7388,2540.9,2540.8,3.41]
[1724962000753,0.3698,2540.9,2540.8,3.41]
[1724962001048,0.3732,2541.2,2540.8,3.80346]
[1724962001252,0.7286,2541.2,2541.1,3.41]
[1724962001646,5.00021515,2541.2,2541.1,3.41]
[1724962001848,0.3554,2541.2,2541.1,3.41]
[1724962002048,0.3689,2541.3,2541.1,3.41]
[1724962005460,3.2078,2541.6,2541.1,4.39355]
[1724962005666,3.2078,2542.6,2542.0,0.39328]
[1724962005960,3.5916,2542.6,2542.5,3.41]
[1724962006255,0.39308,2543.4,2542.5,7.3428]
[1724962006464,0.77688,2543.4,2543.0,3.41]
[1724962006758,0.39311,2543.2,2542.8,3.41]
[1724962006945,7.71892113,2543.3,2542.8,3.41]
[1724962007258,4.51112113,2543.1,2543.0,3.41]
[1724962007452,0.3838,2543.4,2543.0,3.41]
[1724962007656,4.43898577,2543.3,2543.0,3.41]
[1724962007857,0.77687,2543.4,2543.0,3.41]
[1724962008048,0.3838,2543.4,2543.0,3.41]
[1724962008252,4.43898577,2543.3,2543.0,3.41]
[1724962008748,0.39314,2543.0,2542.4,3.41]
[1724962008953,3.2078,2543.1,2542.4,3.41]
[1724962009152,4.4558337,2542.9,2542.4,3.41]
[1724962009356,3.5745,2542.8,2542.4,3.41]
[1724962009756,4.22547769,2542.7,2542.4,3.41]
[1724962009952,4.61866769,2542.7,2542.2,7.7378]
[1724962010159,4.22547769,2542.7,2542.2,7.7378]
[1724962010357,0.39319,2542.6,2542.2,7.7378]
[1724962010561,4.22547769,2542.7,2542.2,3.2078]
[1724962010750,9.08742,2542.8,2542.0,0.00590156]
[1724962010751,0.39324,2542.3,2542.0,0.00590156]
[1724962011061,4.09841789,2542.5,2542.0,0.00590156]
[1724962011062,0.39323,2542.4,2542.0,0.00590156]
[1724962011251,0.39325,2542.3,2542.0,0.00590156]
[1724962011447,4.87445632,2542.3,2542.0,0.00590156]
[1724962011645,0.39325,2542.3,2542.0,0.00590156]
[1724962012155,0.3636,2542.6,2542.0,0.00590156]
[1724962012353,3.2078,2542.5,2542.0,0.00590156]
[1724962012656,0.39324,2542.3,2542.0,0.00590156]
[1724962013456,0.39326,2542.2,2542.0,0.00590156]
[1724962013662,0.39327,2542.1,2542.0,0.00590156]
[1724962013955,8.14944539,2542.1,2542.0,0.00590156]
[1724962014164,8.14944539,2542.1,2541.3,0.3822]
[1724962014165,0.39336,2541.6,2541.3,0.3822]
[1724962014349,0.39337,2541.5,2541.3,0.3822]
[1724962014856,0.3934,2541.3,2541.0,3.2078]
[1724962015252,0.39341,2541.2,2541.0,3.2078]
[1724962015463,0.39342,2541.2,2540.9,0.00590156]
[1724962016166,0.39343,2541.1,2540.9,0.00590156]
[1724962016355,4.39211183,2541.3,2541.0,0.39344]
[1724962016652,3.60705201,2541.4,2541.2,0.39341]
[1724962016653,0.00586201,2541.4,2541.2,0.39341]
[1724962016853,0.3934,2541.3,2540.9,0.00590156]
[1724962017058,4.38807549,2541.3,2540.9,0.00590156]
[1724962017466,3.2078,2541.2,2540.9,0.00590156]
[1724962017858,3.60122,2541.2,2540.9,0.00590156]
[1724962018564,0.39343,2541.1,2540.9,0.00590156]
[1724962018765,0.3934,2541.3,2540.9,0.39935156]
[1724962019060,4.87588951,2541.3,2540.9,0.00590156]
[1724962019261,4.48248951,2541.3,2540.9,0.00590156]
[1724962019563,0.39344,2541.1,2540.9,0.00590156]
[1724962019955,0.39342,2541.2,2540.9,0.00590156]
[1724962020261,4.1942992,2541.1,2540.9,0.00590156]
[1724962020460,0.39344,2541.0,2540.9,0.00590156]
[1724962020764,4.97325,2541.0,2540.9,0.00590156]
[1724962021073,3.98964,2541.0,2540.9,0.00590156]
[1724962021260,0.3884,2541.0,2540.9,0.00590156]
[1724962021464,0.78184,2541.0,2540.9,0.00590156]
[1724962022354,3.98964,2541.0,2540.9,0.00590156]
[1724962022555,0.78184,2541.0,2540.9,0.00590156]
[1724962022967,3.98964,2541.0,2540.9,0.00590156]
[1724962024056,0.78184,2541.0,2540.9,0.00590156]
[1724962024258,0.3884,2541.0,2540.9,0.00590156]
[1724962024666,0.78184,2541.0,2540.9,0.00590156]
[1724962024864,0.3884,2541.0,2540.9,0.00590156]
[1724962025256,0.78184,2541.0,2540.9,0.00590156]
[1724962025755,4.9122,2541.3,2540.9,0.00590156]
[1724962025954,0.39342,2541.2,2540.9,0.00590156]
[1724962026154,4.5045962,2541.2,2540.9,0.00590156]
[1724962026561,0.39343,2541.1,2540.9,0.00590156]
[1724962026768,4.5045962,2541.2,2540.9,0.00590156]
[1724962026959,4.24516235,2541.0,2540.9,0.00590156]
[1724962027152,4.24516235,2541.1,2540.9,0.00590156]
[1724962027559,0.39344,2541.0,2540.9,0.00590156]
[1724962029763,3.60124,2541.1,2540.9,0.00590156]
[1724962029964,0.00586201,2541.4,2541.0,7.3352]
[1724962030162,0.00586201,2541.4,2541.1,0.75262]
[1724962030357,0.00586201,2541.4,2540.9,0.39935156]
[1724962030358,0.39341,2541.2,2540.9,0.39935156]
[1724962030664,0.39341,2541.2,2541.0,40.8]
[1724962030859,0.74881,2541.3,2541.0,40.8]
[1724962031263,0.74881,2541.3,2540.9,0.39936156]
[1724962031457,0.39341,2541.2,2540.9,0.00590156]
[1724962031767,0.39343,2541.1,2540.9,0.00590156]
[1724962031963,4.47878129,2541.2,2540.9,0.00590156]
[1724962032265,0.39344,2541.1,2540.9,0.00590156]
[1724962032463,0.39344,2541.0,2540.9,0.00590156]
[1724962033354,0.39344,2541.1,2540.9,0.00590156]
[1724962033553,0.39343,2541.1,2540.9,0.00590156]
[1724962033757,4.36235493,2541.0,2540.9,0.00590156]
[1724962034565,4.75579493,2541.0,2540.9,0.00590156]
[1724962036265,8.94720493,2541.0,2540.9,0.00590156]
[1724962036661,17.41240493,2541.0,2540.9,4.367e-05]
[1724962036868,23.41240493,2541.0,2540.9,4.367e-05]
[1724962038665,4.36235493,2541.0,2540.9,4.367e-05]
[1724962038865,0.39344,2541.1,2540.9,4.367e-05]
[1724962039670,4.42189507,2541.2,2540.9,4.367e-05]
[1724962039671,4.81531507,2541.2,2540.9,4.367e-05]
[1724962039859,4.81531507,2541.2,2540.9,0.39349367]
[1724962039860,4.42189507,2541.2,2540.9,0.39349367]
[1724962040262,4.42189507,2541.2,2540.9,4.367e-05]
[1724962040465,4.42189507,2541.2,2541.0,0.39343]
[1724962040866,4.42189507,2541.2,2540.9,0.39349367]
[1724962041157,4.42189507,2541.2,2541.0,0.39344]
[1724962041757,4.42189507,2541.2,2540.9,0.39349367]
[1724962042068,4.42189507,2541.2,2541.0,0.39344]
[1724962042369,4.42189507,2541.2,2540.9,0.39349367]
[1724962042569,4.81530507,2541.2,2540.9,4.367e-05]
[1724962042764,0.39343,2541.1,2540.9,4.367e-05]
[1724962042962,4.81531507,2541.2,2540.9,4.367e-05]
[1724962043265,4.42189507,2541.2,2540.9,4.367e-05]
[1724962043465,0.39344,2541.0,2540.9,4.367e-05]
[1724962043668,3.60124,2541.0,2540.9,4.367e-05]
[1724962043871,8.57106098,2541.0,2540.9,4.367e-05]
[1724962044076,4.63586098,2541.0,2540.9,4.367e-05]
[1724962046368,4.24242098,2541.0,2540.9,4.367e-05]
[1724962046569,0.3554,2541.3,2540.9,3.93524367]
[1724962046774,0.3554,2541.3,2541.0,1.50254]
[1724962047574,0.39342,2541.2,2541.0,0.7368]
[1724962047761,0.39343,2541.1,2541.0,0.3622]
[1724962047965,0.3554,2541.3,2541.0,0.3622]
[1724962048167,0.7488,2541.3,2541.0,0.3622]
[1724962048588,0.3554,2541.3,2540.9,4.367e-05]
[1724962048871,4.90014915,2541.2,2540.9,4.367e-05]
[1724962049072,0.39343,2541.1,2540.9,4.367e-05]
[1724962049465,4.47084481,2541.0,2540.9,4.367e-05]
[1724962049871,0.39344,2541.0,2540.9,4.367e-05]
[1724962050266,4.28378197,2541.0,2540.9,4.367e-05]
[1724962050467,11.42678197,2541.0,2540.9,4.367e-05]
[1724962050868,18.41039197,2541.0,2540.9,4.367e-05]
[1724962051471,11.42678197,2541.0,2540.9,4.367e-05]
[1724962052767,3.89034197,2541.0,2540.9,4.367e-05]
[1724962052973,4.28378197,2541.0,2540.9,4.367e-05]
[1724962053678,3.89034197,2541.0,2540.9,4.367e-05]
[1724962054076,4.28378197,2541.0,2540.9,4.367e-05]
[1724962054965,3.89034197,2541.0,2540.9,4.367e-05]
[1724962055577,4.28378197,2541.0,2540.9,4.367e-05]
[1724962055777,8.21898197,2541.0,2540.9,4.367e-05]
[1724962055982,4.32864,2541.0,2540.9,4.367e-05]
[1724962056275,12.06478554,2541.0,2540.9,4.367e-05]
[1724962059579,13.04839554,2541.0,2540.9,4.367e-05]
[1724962059776,20.03200554,2541.0,2540.9,4.367e-05]
[1724962060481,23.62097455,2541.0,2540.9,4.367e-05]
[1724962061380,0.98381,2540.6,2540.1,0.3643]
[1724962061580,0.39356,2540.3,2540.1,0.3643]
[1724962062183,3.5641,2540.4,2540.1,0.3643]
[1724962062391,0.39356,2540.3,2540.1,0.3643]
[1724962062689,4.52893173,2540.3,2540.1,0.3643]
[1724962062986,0.39357,2540.2,2540.1,0.3643]
[1724962063483,4.13537173,2540.3,2540.1,0.3643]
[1724962063484,4.52894173,2540.3,2540.1,0.3643]
[1724962065581,0.39357,2540.2,2540.1,0.3643]
[1724962065788,4.52893173,2540.3,2540.1,0.3643]
[1724962065990,0.39357,2540.2,2540.1,0.3643]
[1724962066679,0.39357,2540.2,2540.0,0.38510156]
[1724962066680,0.39358,2540.1,2540.0,0.00590156]
[1724962066984,4.79956664,2540.1,2540.0,0.00590156]
[1724962067980,8.00736664,2540.1,2540.0,0.00590156]
[1724962070487,11.94416664,2540.1,2540.0,0.00590156]
[1724962071594,12.92812664,2540.1,2540.0,0.00590156]
[1724962071990,16.32812664,2540.1,2540.0,0.00590156]
[1724962073394,17.31208664,2540.1,2540.0,0.00590156]
[1724962073893,15.34416664,2540.1,2540.0,0.00590156]
[1724962074288,16.32812664,2540.1,2540.0,0.00590156]
[1724962074790,15.34416664,2540.1,2540.0,0.00590156]
[1724962075095,14.95058664,2540.1,2540.0,0.00590156]
[1724962075284,15.34416664,2540.1,2540.0,0.00590156]
[1724962075486,11.55058664,2540.1,2540.0,0.00590156]
[1724962075695,4.40598664,2540.1,2540.0,0.00590156]
[1724962075888,4.40598664,2540.1,2540.0,1.12640156]
[1724962076196,3.5641,2540.4,2540.0,4.66960156]
[1724962076197,3.2078,2540.4,2540.0,4.66960156]
[1724962076492,4.13168254,2540.3,2540.0,0.73280156]
[1724962076694,4.13168254,2540.3,2540.0,0.37950156]
[1724962076695,0.39358,2540.1,2540.0,0.37950156]
[1724962077094,4.52526254,2540.1,2540.0,0.37950156]
[1724962078295,4.13168254,2540.1,2540.0,0.37950156]
[1724962078500,4.52526254,2540.1,2540.0,0.37950156]
[1724962079890,4.13168254,2540.1,2540.0,0.37950156]
[1724962080690,4.52526254,2540.1,2540.0,0.37950156]
[1724962080898,4.13168254,2540.1,2540.0,0.37950156]
[1724962082797,3.2078,2540.4,2540.0,4.31630156]
[1724962083000,3.2078,2540.4,2540.1,0.755]
[1724962083297,3.2078,2540.4,2540.1,1.14857]
[1724962083698,3.2078,2540.4,2540.2,0.39355]
[1724962085606,3.4,2540.7,2540.3,3.9368]
[1724962085807,0.39351,2540.6,2540.3,0.39355]
[1724962087293,0.39351,2540.6,2540.2,0.39356]
[1724962087611,0.39351,2540.6,2540.2,0.39355]
[1724962088308,3.7629,2540.7,2540.1,0.755]
[1724962088498,0.39351,2540.6,2540.2,0.39355]
[1724962089512,4.3476828,2540.5,2540.2,0.39355]
[1724962090017,4.3476828,2540.5,2540.3,0.39355]
[1724962090301,4.3476828,2540.5,2540.2,0.39356]
[1724962090503,4.3476828,2540.5,2540.4,0.39354]
[1724962090706,3.2078,2540.8,2540.7,0.39349]
[1724962091115,3.2078,2540.8,2540.6,0.3935]
[1724962091414,3.2078,2540.8,2540.7,0.7342]
[1724962092808,0.39349,2540.7,2540.3,1.00354154]
[1724962093020,4.35328,2540.8,2540.4,1.14933]
[1724962093220,3.9598,2540.8,2540.5,0.39352]
[1724962093511,4.48544144,2540.7,2540.5,0.39352]
[1724962093711,4.48544144,2540.7,2540.6,0.3935]
[1724962095404,4.52823,2541.1,2540.8,0.39346]
[1724962095712,4.29214154,2541.0,2540.8,0.39347]
[1724962096124,4.29214154,2541.0,2540.9,0.3847]
[1724962097012,4.68558154,2541.0,2540.9,0.3847]
[1724962097215,0.98366,2540.9,2540.3,3.2078]
[1724962097410,0.39349,2540.7,2540.3,3.98234]
[1724962097607,0.3636,2540.6,2540.3,3.98234]
[1724962097914,4.46726559,2540.6,2540.3,3.98234]
[1724962098215,4.86076559,2540.6,2540.3,3.98234]
[1724962098411,4.86076559,2540.6,2540.4,0.39354]
[1724962098804,0.3636,2540.6,2540.4,0.39354]
[1724962099008,0.39354,2540.4,2540.3,3.5888]
[1724962099201,4.19165,2540.4,2540.0,0.00590156]
[1724962099412,0.39358,2540.2,2540.0,0.00590156]
[1724962099621,0.3757,2540.1,2540.0,0.00590156]
[1724962099808,4.64846231,2540.1,2540.0,0.00590156]
[1724962103107,5.04204231,2540.1,2540.0,0.00590156]
[1724962105016,9.96280231,2540.1,2540.0,0.00590156]
[1724962105313,8.97884231,2540.1,2540.0,0.00590156]
[1724962106308,15.96280231,2540.1,2540.0,0.00590156]
[1724962107518,14.58526231,2540.1,2539.3,3.2078]
[1724962107708,0.39367,2539.6,2539.3,3.2078]
[1724962107912,0.7505,2539.5,2539.3,3.2078]
[1724962108114,5.26040329,2539.5,2539.3,3.2078]
[1724962108706,5.26040329,2539.5,2539.1,0.00590156]
[1724962108707,11.86820329,2539.5,2539.1,0.00590156]
[1724962108923,12.26189329,2539.5,2539.1,0.39964156]
[1724962110107,0.39369,2539.4,2539.1,0.00590156]
[1724962110306,12.26188329,2539.5,2539.1,0.00590156]
[1724962110505,4.22462633,2539.3,2539.1,0.00590156]
[1724962110814,4.6506334,2539.4,2539.1,0.00590156]
[1724962111016,0.3848,2539.4,2539.2,0.39372]
[1724962111209,0.3654,2539.5,2539.4,0.39369]
[1724962111412,0.00590156,2539.7,2539.4,0.39369]
[1724962111814,4.13288539,2539.6,2539.4,0.39369]
[1724962112014,4.13288539,2539.6,2539.5,0.39367]
[1724962112519,4.13288539,2539.6,2539.4,0.39368]
[1724962112724,4.13288539,2539.6,2539.5,0.39367]
[1724962112919,4.13288539,2539.6,2539.3,0.3606]
[1724962112920,4.13288539,2539.6,2539.4,0.39368]
[1724962113419,4.13288539,2539.6,2539.5,0.39367]
[1724962113822,4.13288539,2539.6,2539.3,0.3606]
[1724962113823,4.13288539,2539.6,2539.4,0.39368]
[1724962114415,4.52654539,2539.6,2539.3,3.9621]
[1724962115626,4.52654539,2539.6,2539.4,0.39369]
[1724962115822,4.52654539,2539.6,2539.3,3.9621]
[1724962116014,4.13288539,2539.6,2539.3,3.2078]
[1724962116210,0.39369,2539.4,2539.3,3.2078]
[1724962116716,0.76708,2539.5,2539.3,3.2078]
[1724962116921,0.39369,2539.4,2539.3,3.2078]
[1724962117122,0.3846,2539.4,2539.3,3.2078]
[1724962117322,0.77829,2539.4,2539.3,3.2078]
[1724962117519,0.3846,2539.4,2539.3,3.2078]
[1724962118520,0.3846,2539.4,2539.1,0.39963156]
[1724962118714,0.3873,2539.3,2539.1,3.60743156]
[1724962119928,0.3873,2539.3,2539.1,0.39963156]
[1724962120129,0.3873,2539.3,2539.1,3.60743156]
[1724962120332,0.3873,2539.3,2539.2,0.39372]
[1724962121721,0.3873,2539.3,2539.1,3.60743156]
[1724962123627,4.95727821,2539.2,2539.1,0.00590156]
[1724962125228,4.56355821,2539.2,2539.1,0.00590156]
[1724962125431,8.16507821,2539.2,2539.1,0.00590156]
[1724962126324,7.77135821,2539.2,2539.1,0.00590156]
[1724962128032,8.16507821,2539.2,2539.1,0.00590156]
[1724962128226,12.10347821,2539.2,2539.1,0.00590156]
[1724962131438,12.36556578,2539.2,2539.1,0.00590156]
[1724962132542,12.10347821,2539.2,2539.1,0.00590156]
[1724962134260,11.70975821,2539.2,2539.1,0.00590156]
[1724962134556,12.10347821,2539.2,2539.1,0.00590156]
[1724962142159,13.52347821,2539.2,2539.1,0.00590156]
[1724962145158,14.50778821,2539.2,2539.1,0.00590156]
[1724962150361,13.52347821,2539.2,2539.1,0.00590156]
[1724962150563,4.56355821,2539.2,2539.1,5.75804156]
[1724962150860,0.00590156,2539.7,2539.6,0.39366]
[1724962151066,0.00590156,2539.7,2539.5,0.39366]
[1724962151262,0.00590156,2539.7,2539.6,1.14226]
[1724962151464,0.00590156,2539.7,2539.6,5.07986]
[1724962153663,0.00590156,2539.7,2539.6,11.07986]
[1724962154464,0.00590156,2539.7,2539.6,5.07986]
[1724962155064,0.00590156,2539.7,2539.6,11.07986]
[1724962155272,0.00590156,2539.7,2539.6,5.07986]
[1724962155665,0.39954156,2539.7,2539.6,0.7486]
[1724962156766,0.00590156,2539.7,2539.6,0.7486]
[1724962158568,0.00590156,2539.7,2539.6,1.14226]
[1724962159174,0.00590156,2539.7,2539.6,5.07986]
[1724962159366,0.00590156,2539.7,2539.6,4.6862]
[1724962160070,0.00590156,2539.7,2539.6,5.07986]
[1724962161075,0.39355,2540.4,2540.1,0.39357]
[1724962161278,0.39355,2540.4,2540.2,0.75997]
[1724962162182,0.39355,2540.4,2540.2,0.3664]
[1724962163363,0.39355,2540.4,2540.2,0.75996]
[1724962163569,3.79353,2540.5,2540.2,0.75996]
[1724962163867,0.39354,2540.4,2540.2,0.75996]
[1724962164178,4.91721709,2540.4,2540.2,0.3664]
[1724962164472,4.52367709,2540.4,2540.2,0.75996]
[1724962165773,4.91721709,2540.4,2540.2,0.75996]
[1724962165974,4.52367709,2540.4,2540.2,0.75996]
[1724962166478,4.91721709,2540.4,2540.2,0.75996]
[1724962166876,4.52367709,2540.4,2540.2,0.75996]
[1724962167478,4.91721709,2540.4,2540.2,0.75997]
[1724962168671,4.90407709,2540.4,2540.2,0.75997]
[1724962172079,0.3601,2540.3,2540.2,0.3664]
[1724962173080,0.3601,2540.3,2540.2,0.75997]
[1724962173980,1.7801,2540.3,2540.2,0.75997]
[1724962174472,1.7801,2540.3,2540.2,0.3664]
[1724962174905,1.7801,2540.3,2539.8,3.96012]
[1724962175089,1.42,2540.0,2539.8,3.60142]
[1724962176185,0.39359,2540.1,2539.8,3.60142]
[1724962176186,1.42,2540.1,2539.9,0.39361]
[1724962176788,1.81359,2540.1,2539.8,3.60142]
[1724962177284,0.39361,2540.0,2539.8,3.2078]
[1724962177492,0.78301,2540.0,2539.8,3.2078]
[1724962177680,0.3894,2540.0,2539.8,3.2078]
[1724962177983,1.42,2539.9,2539.7,0.3709]
[1724962178191,1.42,2539.9,2539.7,0.76454]
[1724962178392,0.3532,2539.8,2539.7,0.3709]
[1724962178590,0.3532,2539.8,2539.7,0.76454]
[1724962178795,1.7732,2539.8,2539.4,0.7177]
[1724962179092,6.49302104,2539.8,2539.5,0.39366]
[1724962179292,1.81367,2539.6,2539.3,0.61000154]
[1724962179496,1.7928,2539.5,2539.3,0.61000154]
[1724962179792,6.11899104,2539.5,2539.3,1.00371154]
[1724962180195,6.11899104,2539.5,2539.1,3.60743156]
[1724962180196,6.51267104,2539.5,2539.1,3.60743156]
[1724962180382,6.51267104,2539.5,2539.1,0.00590156]
[1724962180383,1.42,2539.3,2539.1,0.00590156]
[1724962180586,0.3548,2539.2,2539.1,0.00590156]
[1724962180791,4.49664385,2539.2,2539.1,0.00590156]
[1724962183402,1.42,2539.4,2539.1,0.39964156]
[1724962183594,1.42,2539.3,2539.1,0.00590156]
[1724962183791,5.92175953,2539.3,2539.1,0.00590156]
[1724962184598,5.92175953,2539.3,2539.1,0.39963156]
[1724962185001,4.50175953,2539.3,2539.2,0.39372]
[1724962185301,1.81367,2539.6,2539.2,5.06941]
[1724962185601,1.42,2539.4,2539.2,1.13101]
[1724962186697,1.42,2539.4,2539.3,0.39371]
[1724962187292,1.42,2539.4,2539.2,1.13101]
[1724962187693,1.7794,2539.4,2539.2,1.13101]
[1724962187893,1.7794,2539.4,2539.3,0.39371]
[1724962188995,2.17309,2539.4,2539.2,0.3625]
[1724962189195,2.17309,2539.4,2539.1,0.39963156]
[1724962189196,0.39371,2539.3,2539.1,0.00590156]
[1724962189602,0.3627,2539.2,2539.1,4.33804156]
[1724962189801,0.3627,2539.2,2539.1,0.39964156]
[1724962189998,0.3627,2539.2,2539.1,4.33804156]
[1724962190196,0.3627,2539.2,2539.1,3.94430156]
[1724962190396,5.99984415,2539.2,2539.1,0.00590156]
[1724962191300,4.57984415,2539.2,2539.1,0.00590156]
[1724962192103,5.3809,2539.4,2539.1,0.39964156]
[1724962192299,5.7522,2539.4,2539.1,0.39964156]
[1724962192503,4.35587406,2539.3,2539.1,0.39964156]
[1724962192702,4.74958406,2539.3,2539.1,0.39964156]
[1724962193302,4.35587406,2539.3,2539.1,0.39964156]
[1724962193502,4.35587406,2539.3,2539.2,0.39372]
[1724962194502,4.74958406,2539.3,2539.2,0.39372]
[1724962194700,0.39371,2539.3,2539.2,0.39372]
[1724962194899,2.5444,2539.4,2539.2,0.39372]
[1724962195497,2.5444,2539.4,2539.1,0.39963156]
[1724962195498,0.39371,2539.3,2539.1,0.39963156]
[1724962196007,2.5444,2539.4,2539.2,0.39372]
[1724962197113,2.5444,2539.4,2539.3,0.39371]
[1724962197310,1.7913,2539.4,2539.3,0.39371]
[1724962197811,0.3713,2539.4,2539.3,0.39371]
[1724962199812,0.3713,2539.4,2539.1,0.00590156]
[1724962199813,2.185,2539.4,2539.2,0.39372]
[1724962200011,0.39372,2539.3,2539.1,0.39963156]
[1724962200414,0.3827,2539.2,2539.1,0.39963156]
[1724962200605,0.77642,2539.2,2539.1,0.00590156]
[1724962201113,2.19642,2539.2,2539.1,0.00590156]
[1724962201308,1.8027,2539.2,2539.1,0.00590156]
[1724962201615,1.8027,2539.2,2539.1,0.39964156]
[1724962201810,5.3928,2539.4,2539.2,0.39372]
[1724962202014,5.39279,2539.4,2539.2,0.39372]
[1724962202211,4.45426468,2539.3,2539.2,0.39372]
[1724962202718,4.45426468,2539.3,2539.1,0.39964156]
[1724962202899,1.42,2539.2,2539.1,0.39964156]
[1724962203101,6.26797468,2539.3,2539.1,0.39964156]
[1724962203310,1.81371,2539.3,2539.1,0.39964156]
[1724962203506,4.44426272,2539.2,2539.1,0.39964156]
[1724962204509,4.83798272,2539.2,2539.1,0.00590156]
[1724962205012,4.44426272,2539.2,2539.1,0.39964156]
[1724962206204,4.83798272,2539.2,2539.1,0.39964156]
[1724962206414,4.83798272,2539.2,2539.1,0.00590156]
[1724962207713,4.44426272,2539.2,2539.1,0.39964156]
[1724962207916,4.83798272,2539.2,2539.1,0.00590156]
[1724962208610,4.44426272,2539.2,2539.1,0.39964156]
[1724962208810,4.83798272,2539.2,2539.1,0.00590156]